fUST/lending_fUST_20250907
["ID","MTS","AMOUNT","RATE_DAILY","PERIOD"]
[384071167,1757250639409,-481.51341074,0.00013698,2]
[384071168,1757250639419,-480.0,0.00013698,2]
[384071169,1757250639429,-480.0,0.00013698,2]
[384071170,1757250639440,-480.0,0.00013698,2]
[384071171,1757250639449,-481.97576487,0.00013698,2]
[384071172,1757250639459,-480.0,0.00013698,2]
[384071173,1757250639469,-480.0,0.00013698,2]
[384071174,1757250639479,-480.0,0.00013698,2]
[384071175,1757250639488,-480.0,0.00013698,2]
[384071176,1757250639498,-480.0,0.00013698,2]
[384071177,1757250639508,-480.0,0.00013698,2]
[384071178,1757250639517,-480.0,0.00013698,2]
[384071179,1757250639527,-480.0,0.00013698,2]
[384071180,1757250639536,-480.0,0.00013698,2]
[384071181,1757250639545,-485.54,0.00013698,2]
[384071182,1757250639555,-480.0,0.00013698,2]
[384071183,1757250639565,-482.12818552,0.00013698,2]
[384071184,1757250639574,-480.0,0.00013698,2]
[384071185,1757250639584,-480.0,0.00013698,2]
[384071186,1757250639594,-480.0,0.00013698,2]
[384071187,1757250639603,-1499.33,0.00013698,2]
[384071188,1757250639612,-480.0,0.00013698,2]
[384071189,1757250639622,-480.0,0.00013698,2]
[384071190,1757250639631,-604.12,0.00013698,2]
[384071191,1757250639641,-480.0,0.00013698,2]
[384071192,1757250639650,-480.0,0.00013698,2]
[384071193,1757250639661,-480.0,0.00013698,2]
[384071194,1757250639670,-480.0,0.00013698,2]
[384071195,1757250639680,-779.35,0.00013698,2]
[384071196,1757250639690,-480.0,0.00013698,2]
[384071197,1757250639700,-480.0,0.00013698,2]
[384071198,1757250639709,-480.0,0.00013698,2]
[384071199,1757250639719,-1200.31,0.00013698,2]
[384071200,1757250639729,-480.0,0.00013698,2]
[384071201,1757250639739,-480.0,0.00013698,2]
[384071202,1757250639749,-480.0,0.00013698,2]
[384071203,1757250639758,-480.0,0.00013698,2]
[384071204,1757250639768,-1093.4,0.00013698,2]
[384071205,1757250639777,-480.0,0.00013698,2]
[384071206,1757250639788,-1025.97,0.00013698,2]
[384071207,1757250639797,-480.0,0.00013698,2]
[384071208,1757250639807,-480.0,0.00013698,2]
[384071209,1757250639817,-480.0,0.00013698,2]
[384071210,1757250639827,-480.0,0.00013698,2]
[384071211,1757250639836,-709.14,0.00013698,2]
[384071212,1757250639846,-483.58928266,0.00013698,2]
[384071213,1757250639856,-480.0,0.00013698,2]
[384071214,1757250639865,-480.0,0.00013698,2]
[384071215,1757250639875,-6029.76,0.00013698,2]
[384071216,1757250639885,-480.0,0.00013698,2]
[384071217,1757250639895,-480.0,0.00013698,2]
[384071218,1757250639904,-480.0,0.00013698,2]
[384071219,1757250639914,-480.0,0.00013698,2]
[384071220,1757250639925,-480.0,0.00013698,2]
[384071221,1757250639934,-480.0,0.00013698,2]
[384071223,1757250639943,-2382.62775626,0.00013698,2]
[384071229,1757250640211,-719.60224374,0.00013698,2]
[384071230,1757250640222,-517.12,0.00013698,2]
[384071231,1757250640232,-325.43688716,0.00013698,2]
[384071568,1757250643644,-165.33227971,0.00013698,2]
[384071570,1757250643655,-130.60572028,0.00013698,2]
[384071573,1757250643864,-349.39427972,0.00013698,2]
[384071574,1757250643874,-480.0,0.00013698,2]
[384071575,1757250643884,-527.95253812,0.00013698,2]
[384071576,1757250643894,-480.0,0.00013698,2]
[384071577,1757250643904,-480.0,0.00013698,2]
[384071578,1757250643913,-480.0,0.00013698,2]
[384071579,1757250643923,-480.0,0.00013698,2]
[384071580,1757250643932,-2185.66,0.00013698,2]
[384071581,1757250643941,-480.0,0.00013698,2]
[384071583,1757250643951,-480.0,0.00013698,2]
[384071585,1757250643961,-704.37,0.00013698,2]
[384071587,1757250643970,-480.0,0.00013698,2]
[384071589,1757250643980,-480.0,0.00013698,2]
[384071591,1757250643989,-480.0,0.00013698,2]
[384071593,1757250643999,-480.0,0.00013698,2]
[384071595,1757250644008,-481.97077615,0.00013698,2]
[384071597,1757250644018,-480.0,0.00013698,2]
[384071599,1757250644027,-480.0,0.00013698,2]
[384071601,1757250644037,-480.0,0.00013698,2]
[384071603,1757250644047,-4051.54,0.00013698,2]
[384071605,1757250644057,-857.05,0.00013698,2]
[384071607,1757250644066,-826.42,0.00013698,2]
[384071609,1757250644076,-480.0,0.00013698,2]
[384071611,1757250644086,-480.0,0.00013698,2]
[384071613,1757250644096,-2064.41,0.00013698,2]
[384071615,1757250644106,-1409.47,0.00013698,2]
[384071617,1757250644116,-480.0,0.00013698,2]
[384071619,1757250644125,-484.04014659,0.00013698,2]
[384071621,1757250644135,-455.72753051,0.00013698,2]
[384071623,1757250644145,-480.0,0.00013698,2]
[384071625,1757250644154,-480.0,0.00013698,2]
[384071627,1757250644163,-1323.41,0.00013698,2]
[384071629,1757250644173,-480.0,0.00013698,2]
[384071631,1757250644183,-480.0,0.00013698,2]
[384071633,1757250644193,-480.0,0.00013698,2]
[384071635,1757250644202,-480.0,0.00013698,2]
[384071637,1757250644211,-480.0,0.00013698,2]
[384071639,1757250644220,-579.41,0.00013698,2]
[384071641,1757250644230,-480.0,0.00013698,2]
[384071643,1757250644239,-480.0,0.00013698,2]
[384071645,1757250644249,-480.0,0.00013698,2]
[384071647,1757250644259,-480.0,0.00013698,2]
[384071649,1757250644269,-500.0,0.00013698,2]
[384071651,1757250644278,-500.0,0.00013698,2]
[384071653,1757250644287,-500.0,0.00013698,2]
[384071655,1757250644296,-480.0,0.00013698,2]
[384071657,1757250644306,-500.0,0.00013698,2]
[384071659,1757250644316,-500.0,0.00013698,2]
[384071661,1757250644325,-480.0,0.00013698,2]
[384071663,1757250644335,-500.0,0.00013698,2]
[384071665,1757250644344,-500.0,0.00013698,2]
[384071667,1757250644354,-293.01082722,0.00013698,2]
[384071669,1757250644363,-482.67920354,0.00013698,2]
[384071671,1757250644372,-1257.92,0.00013698,2]
[384071673,1757250644383,-480.0,0.00013698,2]
[384071675,1757250644395,-480.0,0.00013698,2]
[384071677,1757250644403,-480.0,0.00013698,2]
[384071679,1757250644415,-480.0,0.00013698,2]
[384071680,1757250644425,-480.0,0.00013698,2]
[384071682,1757250644434,-603.39822757,0.00013698,2]
[384071684,1757250644443,-153.613903,0.00013698,2]
[384071686,1757250644453,-665.46,0.00013698,2]
[384071688,1757250644464,-1664.62,0.00013698,2]
[384071690,1757250644475,-480.0,0.00013698,2]
[384071692,1757250644484,-3453.55,0.00013698,2]
[384071694,1757250644493,-1982.75923798,0.00013698,2]
[384071696,1757250644506,-335.67,0.00013698,2]
[384071910,1757250646619,-4092.39076202,0.00013698,2]
[384071912,1757250646629,-480.0,0.00013698,2]
[384071914,1757250646638,-480.0,0.00013698,2]
[384071916,1757250646647,-480.0,0.00013698,2]
[384071918,1757250646658,-572.05,0.00013698,2]
[384071920,1757250646667,-480.0,0.00013698,2]
[384071922,1757250646677,-3342.95,0.00013698,2]
[384071924,1757250646686,-526.13,0.00013698,2]
[384071926,1757250646696,-565.66,0.00013698,2]
[384071928,1757250646706,-480.0,0.00013698,2]
[384071930,1757250646716,-3396.17,0.00013698,2]
[384071932,1757250646725,-480.0,0.00013698,2]
[384071934,1757250646734,-514.02,0.00013698,2]
[384071936,1757250646743,-480.0,0.00013698,2]
[384071938,1757250646752,-13751.81,0.00013698,2]
[384071940,1757250646763,-480.0,0.00013698,2]
[384071942,1757250646772,-480.0,0.00013698,2]
[384071944,1757250646781,-2891.36,0.00013698,2]
[384071946,1757250646790,-480.0,0.00013698,2]
[384071948,1757250646800,-480.0,0.00013698,2]
[384071950,1757250646808,-480.0,0.00013698,2]
[384071952,1757250646818,-480.0,0.00013698,2]
[384071954,1757250646827,-981.6,0.00013698,2]
[384071956,1757250646836,-480.0,0.00013698,2]
[384071958,1757250646846,-480.0,0.00013698,2]
[384071960,1757250646855,-480.0,0.00013698,2]
[384071962,1757250646864,-480.0,0.00013698,2]
[384071965,1757250646873,-3043.47,0.00013698,2]
[384071967,1757250646882,-379.42,0.00013698,2]
[384071968,1757250646892,-930.79,0.00013698,2]
[384071970,1757250646902,-687.18,0.00013698,2]
[384071972,1757250646912,-489.99968106,0.00013698,2]
[384071984,1757250646922,-480.0,0.00013698,2]
[384071987,1757250647026,-480.0,0.00013698,2]
[384071989,1757250647035,-480.0,0.00013698,2]
[384071991,1757250647045,-1729.64,0.00013698,2]
[384071993,1757250647055,-1111.18,0.00013698,2]
[384071995,1757250647064,-480.0,0.00013698,2]
[384071997,1757250647074,-480.0,0.00013698,2]
[384071999,1757250647083,-480.0,0.00013698,2]
[384072001,1757250647093,-480.0,0.00013698,2]
[384072003,1757250647102,-964.21,0.00013698,2]
[384072005,1757250647112,-480.0,0.00013698,2]
[384072007,1757250647123,-480.0,0.00013698,2]
[384072009,1757250647133,-671.0,0.00013698,2]
[384072011,1757250647143,-500.0,0.00013698,2]
[384072013,1757250647153,-500.0,0.00013698,2]
[384072015,1757250647162,-500.0,0.00013698,2]
[384072017,1757250647171,-500.0,0.00013698,2]
[384072019,1757250647181,-501.6316782,0.00013698,2]
[384072021,1757250647190,-480.0,0.00013698,2]
[384072023,1757250647199,-151.0,0.00013698,2]
[384072025,1757250647208,-151.0,0.00013698,2]
[384072027,1757250647218,-480.0,0.00013698,2]
[384072029,1757250647227,-2743.18,0.00013698,2]
[384072031,1757250647236,-480.0,0.00013698,2]
[384072033,1757250647245,-1554.69,0.00013698,2]
[384072035,1757250647255,-841.0,0.00013698,2]
[384072037,1757250647264,-600.72,0.00013698,2]
[384072039,1757250647274,-2087.2,0.00013698,2]
[384072041,1757250647283,-480.0,0.00013698,2]
[384072043,1757250647292,-480.0,0.00013698,2]
[384072045,1757250647301,-480.0,0.00013698,2]
[384072047,1757250647311,-174.70156131,0.00013698,2]
[384072049,1757250647320,-480.0,0.00013698,2]
[384072051,1757250647329,-1136.71,0.00013698,2]
[384072053,1757250647338,-480.0,0.00013698,2]
[384072055,1757250647347,-480.0,0.00013698,2]
[384072057,1757250647357,-480.0,0.00013698,2]
[384072059,1757250647367,-480.0,0.00013698,2]
[384072061,1757250647377,-540.71,0.00013698,2]
[384072063,1757250647396,-191.8,0.00013698,2]
[384072065,1757250647405,-482.20714939,0.00013698,2]
[384072067,1757250647415,-3022.33,0.00013698,2]
[384072069,1757250647425,-480.0,0.00013698,2]
[384072071,1757250647439,-890.24,0.00013698,2]
[384072073,1757250647449,-642.96,0.00013698,2]
[384072075,1757250647459,-4881.29,0.00013698,2]
[384072078,1757250647470,-501.46,0.00013698,2]
[384072080,1757250647482,-715.52,0.00013698,2]
[384072082,1757250647491,-480.0,0.00013698,2]
[384072084,1757250647499,-480.0,0.00013698,2]
[384072086,1757250647509,-480.0,0.00013698,2]
[384072088,1757250647518,-198.2,0.00013698,2]
[384072090,1757250647528,-1069.85,0.00013698,2]
[384072092,1757250647537,-1082.69,0.00013698,2]
[384072094,1757250647547,-243.27,0.00013698,2]
[384072096,1757250647556,-987.71,0.00013698,2]
[384072098,1757250647565,-480.0,0.00013698,2]
[384072100,1757250647574,-480.0,0.00013698,2]
[384072102,1757250647584,-480.0,0.00013698,2]
[384072104,1757250647593,-489.98,0.00013698,2]
[384072106,1757250647603,-480.0,0.00013698,2]
[384072108,1757250647612,-480.0,0.00013698,2]
[384072110,1757250647622,-480.0,0.00013698,2]
[384072112,1757250647631,-716.0,0.00013698,2]
[384072114,1757250647641,-480.0,0.00013698,2]
[384072116,1757250647650,-480.0,0.00013698,2]
[384072118,1757250647659,-3742.53,0.00013698,2]
[384072120,1757250647668,-1099.1,0.00013698,2]
[384072122,1757250647677,-151.0,0.00013698,2]
[384072124,1757250647687,-151.0,0.00013698,2]
[384072126,1757250647696,-151.0,0.00013698,2]
[384072128,1757250647706,-151.0,0.00013698,2]
[384072130,1757250647715,-151.0,0.00013698,2]
[384072132,1757250647725,-151.0,0.00013698,2]
[384072134,1757250647734,-151.0,0.00013698,2]
[384072136,1757250647743,-296.39818172,0.00013698,2]
[384072138,1757250647752,-1052.23,0.00013698,2]
[384072140,1757250647761,-480.0,0.00013698,2]
[384072142,1757250647771,-480.0,0.00013698,2]
[384072144,1757250647780,-729.88,0.00013698,2]
[384072146,1757250647790,-480.0,0.00013698,2]
[384072148,1757250647799,-500.0,0.00013698,2]
[384072150,1757250647808,-971.569709,0.00013699,2]
[384072152,1757250647817,-151.0,0.00013699,2]
[384072154,1757250647827,-151.0,0.00013699,2]
[384072156,1757250647837,-1013.21994724,0.00013716,2]
[384072158,1757250647847,-2183.31810187,0.00013745,2]
[384072160,1757250647856,-697.0,0.00013757,2]
[384072162,1757250647866,-505.11,0.00013772,2]
[384072164,1757250647875,-505.11,0.00013772,2]
[384072166,1757250647885,-505.11,0.00013772,2]
[384072168,1757250647894,-505.11,0.00013772,2]
[384072170,1757250647904,-505.11,0.00013772,2]
[384072172,1757250647913,-505.11,0.00013772,2]
[384072174,1757250647924,-505.11,0.00013772,2]
[384072176,1757250647933,-150.95,0.00013772,2]
[384072178,1757250647942,-151.0,0.00013772,2]
[384072180,1757250647952,-151.0,0.00013772,2]
[384072182,1757250647961,-151.0,0.00013772,2]
[384072184,1757250647970,-150.068,0.0001378,2]
[384072186,1757250647979,-150.0,0.0001378,2]
[384072188,1757250647989,-150.0,0.0001378,2]
[384072190,1757250647998,-150.049,0.0001378,2]
[384072192,1757250648008,-150.055,0.0001378,2]
[384072194,1757250648017,-976.0,0.0001378,2]
[384072196,1757250648027,-2154.0,0.0001378,2]
[384072199,1757250648036,-634.0,0.0001378,2]
[384072201,1757250648045,-390.681,0.0001378,2]
[384072202,1757250648054,-427.319,0.0001378,2]
[384072205,1757250648064,-235.889635,0.0001378,2]
[384072207,1757250648074,-2264.10087164,0.000138,2]
[384072208,1757250648083,-15970.9898165,0.00013816,2]
[384072211,1757250648092,-3628.0502735,0.00013816,2]
[384072213,1757250648102,-10589.0153099,0.00013816,2]
[384072215,1757250648111,-1952.4357866,0.00013816,2]
[384072217,1757250648120,-151.0,0.00013816,2]
[384072219,1757250648129,-151.0,0.00013816,2]
[384072221,1757250648139,-5129.2567378,0.00013816,2]
[384072223,1757250648148,-2544.8112999,0.00013816,2]
[384072225,1757250648158,-822.143,0.0001384,2]
[384072227,1757250648167,-2347.87260389,0.00013855,2]
[384072229,1757250648177,-13694.92832491,0.00013868,2]
[384072231,1757250648187,-300.0,0.00013868,2]
[384072233,1757250648197,-300.0,0.00013868,2]
[384072235,1757250648206,-300.0,0.00013868,2]
[384072237,1757250648216,-300.0,0.00013868,2]
[384072239,1757250648226,-300.0,0.00013868,2]
[384072241,1757250648235,-300.0,0.00013868,2]
[384072243,1757250648245,-300.0,0.00013868,2]
[384072245,1757250648254,-300.0,0.00013868,2]
[384072247,1757250648263,-300.0,0.00013868,2]
[384072249,1757250648273,-300.0,0.00013868,2]
[384072251,1757250648283,-300.0,0.00013868,2]
[384072253,1757250648292,-300.0,0.00013868,2]
[384072255,1757250648302,-300.0,0.00013868,2]
[384072257,1757250648312,-300.0,0.00013868,2]
[384072259,1757250648321,-300.0,0.00013868,2]
[384072261,1757250648332,-151.0,0.00013868,2]
[384072263,1757250648341,-151.0,0.00013868,2]
[384072265,1757250648351,-151.0,0.00013868,2]
[384072267,1757250648361,-5942.02450684,0.00013872,2]
[384072269,1757250648370,-790.02,0.00013886,2]
[384072271,1757250648381,-790.02,0.000139,2]
[384072273,1757250648398,-151.0,0.000139,2]
[384072275,1757250648407,-1528.6335228,0.0001391,2]
[384072277,1757250648417,-600.0,0.00013971,2]
[384072279,1757250648427,-151.0,0.00013971,2]
[384072281,1757250648436,-589.54,0.00013971,2]
[384072283,1757250648447,-45386.72,0.00013971,2]
[384072285,1757250648456,-1532.25,0.00013971,2]
[384072287,1757250648468,-480.0,0.00013971,2]
[384072289,1757250648478,-2729.93,0.00013971,2]
[384072291,1757250648487,-1870.6,0.00013971,2]
[384072293,1757250648496,-752.05,0.00013971,2]
[384072295,1757250648505,-2540.81,0.00013971,2]
[384072297,1757250648515,-547.46,0.00013971,2]
[384072299,1757250648525,-151.0,0.00013971,2]
[384072301,1757250648534,-151.0,0.00013971,2]
[384072303,1757250648544,-151.0,0.00013971,2]
[384072305,1757250648553,-480.0,0.00013972,2]
[384072307,1757250648563,-618.51660604,0.00013972,2]
[384072309,1757250648573,-480.0,0.00013972,2]
[384072311,1757250648582,-480.0,0.00013972,2]
[384072313,1757250648591,-751.83,0.00013972,2]
[384072315,1757250648601,-608.47,0.00013972,2]
[384072318,1757250648611,-500.0,0.00013972,2]
[384072320,1757250648620,-480.0,0.00013972,2]
[384072322,1757250648630,-670.29,0.00013972,2]
[384072324,1757250648639,-480.0,0.00013972,2]
[384072326,1757250648649,-480.0,0.00013972,2]
[384072328,1757250648658,-175.21,0.00013972,2]
[384072330,1757250648667,-624.56,0.00013972,2]
[384072332,1757250648676,-178.5582446,0.00013972,2]
[384072344,1757250648776,-480.0,0.00013972,2]
[384072346,1757250648786,-755.68,0.00013972,2]
[384072348,1757250648796,-480.0,0.00013972,2]
[384072350,1757250648805,-611.70053833,0.00013972,2]
[384072352,1757250648815,-480.0,0.00013972,2]
[384072354,1757250648824,-565.87,0.00013972,2]
[384072356,1757250648834,-480.0,0.00013972,2]
[384072358,1757250648844,-557.73,0.00013972,2]
[384072360,1757250648854,-480.0,0.00013972,2]
[384072362,1757250648863,-480.0,0.00013972,2]
[384072364,1757250648872,-483.03,0.00013972,2]
[384072366,1757250648882,-694.19,0.00013972,2]
[384072368,1757250648892,-480.0,0.00013972,2]
[384072370,1757250648901,-480.0,0.00013972,2]
[384072372,1757250648911,-480.0,0.00013972,2]
[384072374,1757250648920,-480.0,0.00013972,2]
[384072376,1757250648930,-545.41,0.00013972,2]
[384072378,1757250648940,-480.0,0.00013972,2]
[384072380,1757250648950,-509.5,0.00013972,2]
[384072382,1757250648960,-480.0,0.00013972,2]
[384072384,1757250648969,-609.71372437,0.00013972,2]
[384072386,1757250648978,-480.0,0.00013972,2]
[384072388,1757250648989,-480.0,0.00013972,2]
[384072390,1757250648998,-480.0,0.00013972,2]
[384072392,1757250649008,-480.0,0.00013972,2]
[384072394,1757250649017,-657.65,0.00013972,2]
[384072396,1757250649027,-656.92,0.00013972,2]
[384072398,1757250649037,-157.0,0.00013972,2]
[384072400,1757250649047,-302.0,0.00013972,2]
[384072402,1757250649056,-500.0,0.00013972,2]
[384072404,1757250649066,-780.92,0.00013972,2]
[384072406,1757250649076,-317.96127899,0.00013972,2]
[384072408,1757250649086,-151.0,0.00013972,2]
[384072410,1757250649095,-480.0,0.00013972,2]
[384072412,1757250649104,-480.0,0.00013972,2]
[384072414,1757250649114,-480.0,0.00013972,2]
[384072417,1757250649123,-542.37,0.00013972,2]
[384072419,1757250649133,-480.0,0.00013972,2]
[384072421,1757250649142,-480.0,0.00013972,2]
[384072423,1757250649151,-536.9,0.00013972,2]
[384072425,1757250649161,-876.28,0.00013972,2]
[384072426,1757250649170,-658.99,0.00013972,2]
[384072429,1757250649180,-861.75,0.00013972,2]
[384072431,1757250649190,-480.0,0.00013972,2]
[384072433,1757250649200,-874.25,0.00013972,2]
[384072435,1757250649210,-623.87,0.00013972,2]
[384072437,1757250649219,-722.1,0.00013972,2]
[384072439,1757250649229,-480.0,0.00013972,2]
[384072441,1757250649240,-1058.98,0.00013972,2]
[384072443,1757250649250,-472.73,0.00013972,2]
[384072445,1757250649259,-1494.99,0.00013972,2]
[384072447,1757250649269,-480.0,0.00013972,2]
[384072449,1757250649278,-480.0,0.00013972,2]
[384072451,1757250649287,-480.0,0.00013972,2]
[384072453,1757250649297,-480.0,0.00013972,2]
[384072455,1757250649306,-617.77,0.00013972,2]
[384072457,1757250649315,-480.0,0.00013972,2]
[384072459,1757250649325,-480.0,0.00013972,2]
[384072461,1757250649335,-480.0,0.00013972,2]
[384072463,1757250649345,-225.52,0.00013972,2]
[384072465,1757250649354,-451.03170501,0.00013972,2]
[384072467,1757250649363,-480.0,0.00013972,2]
[384072469,1757250649372,-480.0,0.00013972,2]
[384072471,1757250649382,-471.66,0.00013972,2]
[384072473,1757250649394,-480.0,0.00013972,2]
[384072475,1757250649403,-480.0,0.00013972,2]
[384072477,1757250649413,-480.0,0.00013972,2]
[384072479,1757250649423,-1499.33,0.00013972,2]
[384072481,1757250649434,-480.0,0.00013972,2]
[384072483,1757250649443,-480.0,0.00013972,2]
[384072485,1757250649452,-604.12,0.00013972,2]
[384072487,1757250649462,-480.0,0.00013972,2]
[384072489,1757250649471,-480.0,0.00013972,2]
[384072491,1757250649480,-779.35,0.00013972,2]
[384072493,1757250649489,-695.66865829,0.00013972,2]
[384072495,1757250649499,-1200.31,0.00013972,2]
[384072497,1757250649508,-480.0,0.00013972,2]
[384072499,1757250649517,-480.0,0.00013972,2]
[384072501,1757250649526,-480.0,0.00013972,2]
[384072503,1757250649536,-1093.4,0.00013972,2]
[384072505,1757250649545,-480.0,0.00013972,2]
[384072508,1757250649555,-1025.97,0.00013972,2]
[384072510,1757250649572,-480.0,0.00013972,2]
[384072513,1757250649588,-480.0,0.00013972,2]
[384072515,1757250649601,-709.14,0.00013972,2]
[384072518,1757250649616,-200.0,0.00013972,2]
[384072521,1757250649632,-6029.76,0.00013972,2]
[384072523,1757250649646,-480.0,0.00013972,2]
[384072526,1757250649661,-325.2234643,0.00013972,2]
[384072529,1757250649676,-480.0,0.00013972,2]
[384072531,1757250649690,-480.0,0.00013972,2]
[384072534,1757250649704,-480.0,0.00013972,2]
[384072536,1757250649719,-480.0,0.00013972,2]
[384072539,1757250649734,-3102.23,0.00013972,2]
[384072541,1757250649746,-517.12,0.00013972,2]
[384072544,1757250649759,-480.0,0.00013972,2]
[384072546,1757250649771,-480.0,0.00013972,2]
[384072549,1757250649787,-480.0,0.00013972,2]
[384072551,1757250649801,-480.0,0.00013972,2]
[384072554,1757250649816,-500.0,0.00013972,2]
[384072557,1757250649834,-2185.66,0.00013972,2]
[384072559,1757250649845,-480.0,0.00013972,2]
[384072561,1757250649857,-704.37,0.00013972,2]
[384072564,1757250649872,-307.05275983,0.00013972,2]
[384072566,1757250649888,-251.9817288,0.00013972,2]
[384072569,1757250649902,-480.0,0.00013972,2]
[384072571,1757250649915,-157.0,0.00013972,2]
[384072573,1757250649930,-480.0,0.00013972,2]
[384072576,1757250649942,-480.0,0.00013972,2]
[384072578,1757250649956,-4051.54,0.00013972,2]
[384072580,1757250649968,-857.05,0.00013972,2]
[384072583,1757250649981,-826.42,0.00013972,2]
[384072585,1757250649993,-480.0,0.00013972,2]
[384072587,1757250650005,-480.0,0.00013972,2]
[384072590,1757250650018,-2064.41,0.00013972,2]
[384072592,1757250650032,-480.0,0.00013972,2]
[384072595,1757250650044,-1409.47,0.00013972,2]
[384072597,1757250650056,-480.0,0.00013972,2]
[384072599,1757250650069,-480.0,0.00013972,2]
[384072601,1757250650081,-1323.41,0.00013972,2]
[384072604,1757250650093,-480.0,0.00013972,2]
[384072606,1757250650105,-480.0,0.00013972,2]
[384072608,1757250650117,-579.41,0.00013972,2]
[384072611,1757250650129,-480.0,0.00013972,2]
[384072613,1757250650142,-480.0,0.00013972,2]
[384072615,1757250650154,-480.0,0.00013972,2]
[384072618,1757250650167,-480.0,0.00013972,2]
[384072620,1757250650179,-480.0,0.00013972,2]
[384072622,1757250650192,-484.00799729,0.00013972,2]
[384072625,1757250650203,-1257.92,0.00013972,2]
[384072627,1757250650216,-480.0,0.00013972,2]
[384072630,1757250650229,-480.0,0.00013972,2]
[384072632,1757250650241,-480.0,0.00013972,2]
[384072634,1757250650253,-665.46,0.00013972,2]
[384072637,1757250650266,-1664.62,0.00013972,2]
[384072639,1757250650278,-480.0,0.00013972,2]
[384072641,1757250650290,-3453.55,0.00013972,2]
[384072644,1757250650303,-6410.82,0.00013972,2]
[384072646,1757250650316,-480.0,0.00013972,2]
[384072648,1757250650329,-572.05,0.00013972,2]
[384072651,1757250650342,-3342.95,0.00013972,2]
[384072653,1757250650354,-526.13,0.00013972,2]
[384072655,1757250650367,-565.66,0.00013972,2]
[384072657,1757250650380,-480.0,0.00013972,2]
[384072660,1757250650396,-3396.17,0.00013972,2]
[384072662,1757250650408,-480.0,0.00013972,2]
[384072664,1757250650420,-514.02,0.00013972,2]
[384072667,1757250650433,-480.0,0.00013972,2]
[384072669,1757250650445,-13751.81,0.00013972,2]
[384072671,1757250650458,-354.33,0.00013972,2]
[384072673,1757250650472,-480.0,0.00013972,2]
[384072674,1757250650485,-2891.36,0.00013972,2]
[384072675,1757250650497,-322.1758387,0.00013972,2]
[384072676,1757250650506,-480.0,0.00013972,2]
[384072677,1757250650515,-981.6,0.00013972,2]
[384072678,1757250650527,-480.0,0.00013972,2]
[384072679,1757250650535,-480.0,0.00013972,2]
[384072680,1757250650546,-3043.47,0.00013972,2]
[384072681,1757250650555,-930.79,0.00013972,2]
[384072693,1757250650672,-687.18,0.00013972,2]
[384072697,1757250650726,-480.0,0.00013972,2]
[384072699,1757250650737,-480.0,0.00013972,2]
[384072701,1757250650747,-480.0,0.00013972,2]
[384072703,1757250650756,-1729.64,0.00013972,2]
[384072705,1757250650766,-1111.18,0.00013972,2]
[384072707,1757250650775,-480.0,0.00013972,2]
[384072709,1757250650784,-157.0,0.00013972,2]